bitfinex-derivatives/quotes_ETHF0:USTF0_20250702
["timestamp","ask_amount","ask_price","bid_price","bid_amount"]
[1751440368660,37.95616,2449.0,2448.9,3.2003685]
[1751440369958,37.95616,2449.0,2448.9,0.81649]
[1751440370263,0.81649,2448.9,2448.8,2.3414685]
[1751440370560,1.64669,2448.9,2448.8,2.3414685]
[1751440372665,0.81654,2448.8,2448.6,0.81657]
[1751440372865,0.81654,2448.8,2448.7,2.3414685]
[1751440373060,25.60454,2448.8,2448.7,2.3414685]
[1751440377668,1.64671,2448.9,2448.7,3.1580285]
[1751440377963,25.60452,2448.8,2448.7,3.1580285]
[1751440378265,11.522,2448.9,2448.8,0.81652]
[1751440378563,36.31,2448.9,2448.8,0.81652]
[1751440378764,37.12649,2448.9,2448.8,0.8885]
[1751440381166,0.81649,2448.9,2448.8,0.8885]
[1751440381366,25.60349,2448.9,2448.8,0.8885]
[1751440381567,25.60349,2448.9,2448.8,1.70502]
[1751440381568,24.787,2448.9,2448.8,1.70502]
[1751440381962,13.97776,2449.0,2448.8,0.8885]
[1751440382162,24.787,2448.9,2448.8,1.705]
[1751440382364,24.787,2448.9,2448.8,4.0464685]
[1751440382968,25.60349,2448.9,2448.8,4.0464685]
[1751440383170,24.787,2448.9,2448.8,4.0464685]
[1751440383470,25.60349,2448.9,2448.8,4.0464685]
[1751440384070,24.787,2448.9,2448.8,4.0464685]
[1751440384270,25.60349,2448.9,2448.8,3.2299685]
[1751440384669,25.60349,2448.9,2448.8,4.0464885]
[1751440384871,24.787,2448.9,2448.8,4.0464885]
[1751440385670,25.60349,2448.9,2448.8,3.2299685]
[1751440386372,24.787,2448.9,2448.8,4.0464885]
[1751440386672,0.81648,2449.0,2448.8,4.0464885]
[1751440386873,25.60149,2448.9,2448.8,3.2299685]
[1751440387870,25.60149,2448.9,2448.7,2.3414685]
[1751440388082,0.81652,2448.8,2448.6,0.81657]
[1751440388373,24.785,2448.7,2448.6,0.81657]
[1751440389376,24.785,2448.7,2448.6,3.1580385]
[1751440391078,25.60156,2448.7,2448.6,2.3414685]
[1751440394080,24.785,2448.7,2448.6,3.1580585]
[1751440394282,1.66161,2448.9,2448.7,0.81655]
[1751440394479,13.18161,2448.9,2448.8,0.8584]
[1751440394779,37.96461,2448.9,2448.8,3.1998685]
[1751440395880,37.96461,2448.9,2448.8,0.8584]
[1751440396180,37.96461,2448.9,2448.8,3.1998685]
[1751440396475,37.96461,2448.9,2448.8,0.8584]
[1751440396781,37.96461,2448.9,2448.8,3.1998685]
[1751440397182,37.96461,2448.9,2448.8,0.8584]
[1751440397383,0.81653,2448.8,2448.7,2.3414685]
[1751440398283,0.81653,2448.8,2448.7,3.1580285]
[1751440398583,0.81653,2448.8,2448.7,2.3414685]
[1751440405487,0.81659,2448.6,2448.5,0.8852]
[1751440405686,25.59659,2448.6,2448.5,3.2266685]
[1751440406786,25.59659,2448.6,2448.5,4.0432885]
[1751440407287,24.78,2448.6,2448.5,4.0432885]
[1751440408187,25.59659,2448.6,2448.5,4.0432885]
[1751440408484,25.59659,2448.6,2448.2,1.4197]
[1751440408688,25.59659,2448.6,2448.5,2.3414685]
[1751440410988,0.81662,2448.5,2448.4,41.623]
[1751440411184,0.81662,2448.5,2448.4,43.9644685]
[1751440411891,0.81662,2448.5,2448.4,43.1414685]
[1751440413386,26.82156,2448.6,2447.9,1.4054]
[1751440413593,26.82156,2448.6,2447.7,1.69248]
[1751440413594,0.81684,2447.9,2447.7,1.69248]
[1751440413891,11.516,2448.2,2447.8,3.1995685]
[1751440414088,0.8168,2448.0,2447.8,0.8581]
[1751440414391,0.81672,2448.2,2448.0,0.81677]
[1751440414594,0.81672,2448.2,2448.1,0.8581]
[1751440414891,25.59472,2448.2,2448.1,0.8581]
[1751440415192,25.59472,2448.2,2448.1,3.1995685]
[1751440416185,0.8862,2448.4,2448.1,3.1995685]
[1751440416493,0.81667,2448.4,2448.3,2.3414685]
[1751440416991,25.59667,2448.4,2448.3,2.3414685]
[1751440421295,24.78,2448.4,2448.1,0.8581]
[1751440421595,0.81672,2448.2,2448.1,0.8581]
[1751440423095,0.81672,2448.2,2448.1,1.67486]
[1751440423697,0.81672,2448.2,2448.1,0.8581]
[1751440423994,0.81672,2448.2,2448.1,1.67486]
[1751440424797,0.81672,2448.2,2448.1,0.8581]
[1751440425298,0.81672,2448.2,2448.1,1.67486]
[1751440425487,0.81672,2448.2,2448.1,0.8581]
[1751440429396,0.81672,2448.2,2448.1,3.1995685]
[1751440431898,0.8306,2448.5,2448.1,3.1995685]
[1751440432096,24.78,2448.2,2448.1,1.67486]
[1751440432294,24.78,2448.2,2448.1,3.07286]
[1751440439504,25.59672,2448.2,2448.1,0.8581]
[1751440439809,25.59672,2448.2,2448.1,3.1995685]
[1751440440398,25.59672,2448.2,2448.1,4.0163285]
[1751440440599,25.59672,2448.2,2448.1,3.1995685]
[1751440443007,25.59672,2448.2,2448.1,2.3414685]
[1751440443402,0.81676,2448.1,2447.9,0.81682]
[1751440443604,24.78,2448.2,2448.1,2.3414685]
[1751440443807,25.59672,2448.2,2448.1,2.3414685]
[1751440444909,0.81678,2448.1,2447.9,0.81681]
[1751440445110,0.81677,2448.1,2448.0,2.3414685]
[1751440447113,24.78,2448.2,2447.8,3.2137685]
[1751440447314,0.81682,2447.9,2447.8,3.2137685]
[1751440447509,25.59282,2447.9,2447.8,0.8723]
[1751440448305,0.81686,2447.8,2447.7,2.3414685]
[1751440449113,0.81686,2447.8,2447.7,3.1583585]
[1751440449313,0.81686,2447.8,2447.7,2.3414685]
[1751440450209,37.10784,2447.9,2447.7,2.3414685]
[1751440450414,0.81686,2447.8,2447.7,2.3414685]
[1751440450712,25.59286,2447.8,2447.7,2.3414685]
[1751440451911,0.81689,2447.7,2447.6,0.8526]
[1751440452112,0.81689,2447.7,2447.6,3.1940685]
[1751440452313,25.59287,2447.8,2447.6,4.0109885]
[1751440452716,25.59287,2447.8,2447.6,3.1940685]
[1751440453015,25.59287,2447.8,2447.6,4.0109885]
[1751440453212,24.776,2447.9,2447.6,3.1940685]
[1751440453515,24.776,2447.9,2447.8,3.1583285]
[1751440454011,24.776,2447.9,2447.8,2.3414685]
[1751440454215,25.59282,2447.9,2447.8,2.3414685]
[1751440454409,24.776,2447.9,2447.8,2.3414685]
[1751440454610,24.776,2447.9,2447.8,3.1583285]
[1751440455313,24.776,2447.9,2447.8,0.81686]
[1751440455514,25.59282,2447.9,2447.8,2.3414685]
[1751440456013,24.776,2447.9,2447.8,2.3414685]
[1751440456311,24.776,2447.9,2447.8,3.1583285]
[1751440458318,25.59282,2447.9,2447.8,2.3414685]
[1751440458519,24.776,2447.9,2447.8,2.3414685]
[1751440458819,24.776,2447.9,2447.8,3.1583285]
[1751440459218,24.776,2447.9,2447.8,2.3414685]
[1751440459419,0.81686,2447.8,2447.6,1.6695]
[1751440459628,0.81686,2447.8,2447.7,2.3414685]
[1751440459821,25.6181,2447.9,2426.6,9.814]
[1751440460120,2.3414685,2446.5,2445.9,2.3414685]
[1751440460324,58.803,2446.7,2446.1,2.3414685]
[1751440460519,37.059,2446.6,2446.1,2.3414685]
[1751440460721,0.81731,2446.5,2446.1,2.3414685]
[1751440460921,1.4184,2446.6,2446.1,2.3414685]
[1751440461222,0.81732,2446.4,2446.3,2.3414685]
[1751440462322,0.81739,2446.2,2446.1,2.3414685]
[1751440462523,26.11239,2446.2,2446.1,2.3414685]
[1751440463131,0.81742,2446.1,2446.0,43.0635]
[1751440463318,26.10242,2446.1,2446.0,45.4049685]
[1751440465325,26.09042,2446.1,2446.0,45.4049685]
[1751440467124,0.81742,2446.1,2446.0,45.4049685]
[1751440467325,26.08642,2446.1,2446.0,45.4049685]
[1751440469719,0.81742,2446.1,2446.0,45.4049685]
[1751440469921,58.803,2446.7,2446.0,52.746437]
[1751440470126,0.8174,2446.2,2446.0,45.4049685]
[1751440470325,25.251,2446.2,2446.0,46.2224185]
[1751440470628,25.251,2446.2,2446.0,51.2224185]
[1751440471024,26.06839,2446.2,2446.0,51.2224285]
[1751440471519,25.251,2446.2,2446.1,6.01249035]
[1751440471724,25.251,2446.2,2446.1,6.56928035]
[1751440471924,25.251,2446.2,2446.1,11.56928035]
[1751440472124,25.251,2446.2,2446.1,6.56928035]
[1751440472324,25.251,2446.2,2444.7,2.3414685]
[1751440472325,2.04384,2445.8,2444.7,2.3414685]
[1751440472525,4.6504685,2445.7,2444.8,0.8456]
[1751440472725,2.04407,2445.5,2444.9,40.8]
[1751440472927,0.81776,2445.1,2445.0,2.3414685]
[1751440473225,26.23676,2445.1,2445.0,2.3414685]
[1751440473421,0.81776,2445.1,2445.0,2.3414685]
[1751440473630,25.417,2445.1,2445.0,9.682937]
[1751440474126,0.81772,2445.3,2445.0,50.482937]
[1751440474328,26.23372,2445.3,2445.2,2.3414685]
[1751440475127,25.416,2445.3,2445.0,43.1414685]
[1751440475326,0.81775,2445.2,2445.0,40.8]
[1751440475529,0.81775,2445.2,2445.1,2.3414685]
[1751440477932,0.81776,2445.1,2445.0,43.1414685]
[1751440480128,0.81789,2444.7,2444.6,0.8909]
[1751440480324,0.81789,2444.7,2444.6,3.2323685]
[1751440480628,0.81789,2444.7,2444.6,44.0323685]
[1751440481029,25.404,2444.8,2444.6,44.0323685]
[1751440481230,0.81789,2444.7,2444.6,44.0323685]
[1751440483733,26.22688,2444.8,2444.6,44.0323685]
[1751440483925,0.81789,2444.7,2444.6,44.0323685]
[1751440484629,25.397,2444.8,2444.6,44.0323685]
[1751440485031,25.4,2445.0,2444.6,44.0323685]
[1751440485229,0.81776,2445.1,2445.0,2.3414685]
[1751440485430,26.21076,2445.1,2445.0,2.3414685]
[1751440485731,26.20876,2445.1,2445.0,2.3414685]
[1751440488428,26.20876,2445.1,2442.7,4.09273]
[1751440488429,35.073937,2445.1,2442.7,4.09273]
[1751440488623,2.04459,2444.9,2443.7,2.3414685]
[1751440488824,2.04507,2444.3,2443.9,2.3414685]
[1751440489028,0.81812,2444.0,2443.9,2.3414685]
[1751440489228,3.1768,2444.2,2443.9,2.3414685]
[1751440489527,0.81809,2444.2,2444.1,2.3414685]
[1751440489834,25.617,2444.3,2444.1,2.3414685]
[1751440490037,26.43504,2444.3,2444.1,2.3414685]
[1751440490336,26.43502,2444.3,2444.2,2.3414685]
[1751440490736,0.81802,2444.3,2444.2,2.3414685]
[1751440495245,0.81809,2444.1,2444.0,0.8209]
[1751440495444,0.81809,2444.1,2444.0,3.1623685]
[1751440495847,0.81809,2444.1,2444.0,43.9623685]
[1751440496245,0.81808,2444.2,2444.0,43.9623685]
[1751440496448,0.81808,2444.2,2444.1,2.3414685]
[1751440499248,2.04515,2444.2,2443.2,0.81838]
[1751440499453,0.81819,2443.8,2443.7,2.3414685]
[1751440499647,0.81819,2443.8,2443.0,2.7500685]
[1751440499648,4.781937,2443.8,2440.4,2.04831]
[1751440499850,2.04633,2442.8,2441.4,2.3414685]
[1751440500053,0.81872,2442.3,2442.0,2.3414685]
[1751440500354,0.8865,2442.7,2442.2,2.3414685]
[1751440500543,26.434,2443.2,2442.6,2.3414685]
[1751440500745,0.81839,2443.2,2443.1,2.3414685]
[1751440500953,0.81839,2443.2,2443.1,43.1414685]
[1751440501153,9.39227201,2443.2,2443.1,40.8]
[1751440501354,8.57388201,2443.2,2443.1,43.1414685]
[1751440501559,35.00488201,2443.2,2443.1,43.1414685]
[1751440501852,35.82327201,2443.2,2443.1,40.8]
[1751440502243,9.39227201,2443.2,2443.1,40.8]
[1751440502451,35.81927201,2443.2,2443.1,40.8]
[1751440502647,35.80627201,2443.2,2443.1,40.8]
[1751440502848,9.39227201,2443.2,2443.1,40.8]
[1751440503048,35.80627201,2443.2,2443.1,40.8]
[1751440503747,35.80127201,2443.2,2443.1,40.8]
[1751440505647,8.57388201,2443.2,2443.1,45.3262158]
[1751440506044,34.94588201,2443.2,2443.1,45.3262158]
[1751440506451,8.57388201,2443.2,2443.1,45.3262158]
[1751440507254,8.57388201,2443.2,2443.1,55.59259824]
[1751440507653,8.57388201,2443.2,2443.1,56.91589824]
[1751440508359,8.57388201,2443.2,2443.1,51.91589824]
[1751440508558,8.57388201,2443.2,2443.1,57.73432824]
[1751440509052,0.8739,2444.2,2443.1,61.44211404]
[1751440509255,27.15509,2444.1,2444.0,4.5262158]
[1751440509553,28.38224,2444.1,2443.5,4.5262158]
[1751440509751,28.38224,2444.1,2443.8,4.5262158]
[1751440509752,0.81816,2443.9,2443.8,4.5262158]
[1751440510157,27.14816,2443.9,2443.8,4.5262158]
[1751440510754,27.14416,2443.9,2443.8,4.5262158]
[1751440511858,0.81816,2443.9,2443.8,4.5262158]
[1751440512254,9.39204201,2443.9,2443.8,4.5262158]
[1751440513558,35.68604201,2443.9,2443.8,4.5262158]
[1751440513858,35.68604201,2443.9,2443.4,3.09402]
[1751440514063,0.81822,2443.8,2443.6,4.5262158]
[1751440514362,0.81822,2443.8,2443.7,5.35506964]
[1751440515162,9.39210201,2443.8,2443.7,5.35506964]
[1751440515863,8.57388201,2443.8,2443.7,5.35506964]
[1751440516164,9.39207201,2443.8,2443.7,6.66816964]
[1751440518563,35.60607201,2443.8,2443.7,6.66816964]
[1751440519268,34.78788201,2443.8,2443.7,6.66816964]
[1751440519471,8.57388201,2443.8,2443.7,6.66816964]
[1751440519667,8.57388201,2443.8,2443.7,7.53256964]
[1751440520862,9.39207201,2443.8,2443.7,5.35506964]
[1751440521264,9.39209201,2443.8,2443.5,6.99699067]
[1751440521463,9.39209201,2443.8,2443.7,5.31990067]
[1751440521668,0.81823,2443.7,2443.5,2.3039]
[1751440521866,9.39209201,2443.8,2443.5,3.12219]
[1751440522068,9.39209201,2443.8,2443.7,5.31990067]
[1751440522268,9.39209201,2443.8,2443.6,5.31990067]
[1751440522469,9.39209201,2443.8,2443.7,5.43373551]
[1751440522772,0.81823,2443.7,2443.6,5.43373551]
[1751440523070,0.81823,2443.7,2443.5,2.3039]
[1751440523369,0.81823,2443.7,2443.6,5.29675228]
[1751440523570,0.81822,2443.7,2443.6,5.29675228]
[1751440523771,0.81822,2443.7,2443.6,8.98944573]
[1751440524671,9.39209201,2443.8,2443.6,8.98944573]
[1751440524967,0.81823,2443.7,2443.6,8.98944573]
[1751440525274,9.39211201,2443.7,2443.6,7.65284573]
[1751440526975,8.57388201,2443.7,2443.2,3.22819345]
[1751440527167,8.57388201,2443.7,2443.2,0.8721]
[1751440527168,0.81836,2443.3,2443.2,0.8721]
[1751440527669,0.81836,2443.3,2443.2,6.21771034]
[1751440533275,9.39224201,2443.3,2443.2,6.21771034]
[1751440541081,9.39224201,2443.3,2443.2,5.34561034]
[1751440546385,8.57388201,2443.3,2443.2,5.34561034]
[1751440546580,9.39224201,2443.3,2443.2,5.34561034]
[1751440551887,8.57388201,2443.3,2443.2,5.34561034]
[1751440552093,9.39224201,2443.3,2443.2,5.34561034]
[1751440557097,8.57388201,2443.3,2443.2,5.34561034]
[1751440557297,8.57388201,2443.3,2443.2,6.21261034]
[1751440557701,8.57388201,2443.3,2443.2,7.57541034]
[1751440558402,8.57388201,2443.3,2443.2,8.39380034]
[1751440559804,8.57388201,2443.3,2443.2,7.57541034]
[1751440560102,8.57388201,2443.3,2443.2,6.21261034]
[1751440560503,8.57388201,2443.3,2443.2,7.03100034]
[1751440560803,8.57388201,2443.3,2443.2,6.21261034]
[1751440561403,8.57388201,2443.3,2443.2,7.03100034]
[1751440561605,8.57388201,2443.3,2443.2,6.21261034]
[1751440563702,8.57388201,2443.3,2443.2,7.03100034]
[1751440564208,8.57388201,2443.3,2443.2,6.21261034]
[1751440564508,8.57388201,2443.3,2443.2,7.03100034]
[1751440567108,8.57388201,2443.3,2443.2,5.34561034]
[1751440567309,8.57388201,2443.3,2443.1,40.8]
[1751440567510,2.2586,2443.2,2443.1,40.8]
[1751440568809,1.3596,2443.2,2443.1,40.8]
[1751440570402,4.53408345,2443.2,2443.1,40.8]
[1751440570603,0.8186,2442.6,2441.8,2.0471]
[1751440570804,2.35609345,2442.5,2441.9,3.24129345]
[1751440571010,5.42359345,2442.5,2442.1,5.2014047]
[1751440571209,5.42359345,2442.5,2442.0,40.8]
[1751440571405,0.81876,2442.1,2442.0,40.8]
[1751440571611,0.81876,2442.2,2442.0,40.8]
[1751440571916,2.26826,2442.2,2442.0,40.8]
[1751440572314,2.26826,2442.2,2442.0,43.15609345]
[1751440573716,1.4495,2442.2,2442.0,43.15609345]
[1751440574218,0.81876,2442.1,2442.0,40.8]
[1751440574716,2.26824,2442.2,2442.0,40.8]
[1751440575017,13.4185,2442.2,2442.1,2.35609345]
[1751440575916,13.4185,2442.2,2442.1,3.17485345]
[1751440576216,13.4185,2442.2,2442.0,40.8]
[1751440576415,13.4185,2442.2,2442.1,2.35609345]
[1751440576814,13.4185,2442.2,2442.0,40.8]
[1751440577114,13.4185,2442.2,2442.1,2.35609345]
[1751440577617,13.4185,2442.2,2442.0,40.8]
[1751440577821,13.4185,2442.2,2442.1,2.35609345]
[1751440578616,21.99238201,2442.2,2442.1,2.35609345]
[1751440579520,10.02338201,2442.2,2442.1,2.35609345]
[1751440580221,10.84211201,2442.2,2442.0,40.8]
[1751440580421,10.84211201,2442.2,2442.1,2.35609345]
[1751440580720,10.02338201,2442.2,2442.1,2.35609345]
[1751440581416,10.02338201,2442.2,2442.1,3.17485345]
[1751440581622,8.57388201,2442.2,2442.1,0.81876]
[1751440582616,8.57388201,2442.2,2442.1,6.10789321]
[1751440583315,8.57388201,2442.2,2442.1,8.36079321]
[1751440584622,70.882,2442.7,2442.6,0.81859]
[1751440584922,70.882,2442.7,2442.6,3.17468345]
[1751440587623,79.45588201,2442.7,2442.6,3.17468345]
[1751440588326,80.85748201,2442.7,2442.6,3.17468345]
[1751440593529,79.45588201,2442.7,2442.6,3.17468345]
[1751440594734,104.99088201,2442.7,2442.6,3.17468345]
[1751440594935,104.99088201,2442.7,2442.6,0.81859]
[1751440595136,104.99088201,2442.7,2442.6,3.17468345]
[1751440596637,67.48388201,2442.7,2442.6,3.17468345]
[1751440597130,92.99488201,2442.7,2442.6,3.17468345]
[1751440598233,92.99288201,2442.7,2442.6,3.17468345]
[1751440600039,8.57388201,2442.7,2442.6,3.17468345]
[1751440600439,8.57388201,2442.7,2442.6,8.49707304]
[1751440600740,25.485,2443.2,2443.1,3.17452345]
[1751440601040,11.878,2443.3,2443.2,0.81839]
[1751440601634,37.36,2443.3,2443.2,0.81839]
[1751440602241,37.36,2443.3,2443.1,43.97450345]
[1751440603041,11.878,2443.3,2443.1,43.97450345]
[1751440603238,25.481,2443.2,2443.1,43.97450345]
[1751440605140,11.878,2443.3,2443.2,0.81839]
[1751440605540,37.331,2443.3,2443.2,1.70119]
[1751440606240,11.878,2443.3,2443.2,1.70119]
[1751440607446,20.45188201,2443.3,2443.2,1.70119]
[1751440609944,20.45188201,2443.3,2443.2,3.10589]
[1751440610342,20.45188201,2443.3,2443.2,8.475588]
[1751440610845,8.57388201,2443.3,2443.2,8.475588]
[1751440611040,5.38164604,2443.3,2443.2,8.475588]
[1751440611846,84.325,2444.1,2443.3,2.04583]
[1751440612041,84.325,2444.1,2443.3,2.1663]
[1751440612243,0.8182,2443.8,2443.4,5.3837832]
[1751440612546,2.35609345,2443.6,2443.1,40.8]
[1751440612745,26.3461,2443.5,2442.7,2.35609345]
[1751440612944,26.3461,2443.5,2443.0,0.81846]
[1751440612945,1.3365,2443.4,2443.0,0.81846]
[1751440613147,25.449,2443.3,2443.0,0.81846]
[1751440613444,2.2367,2443.2,2443.0,0.81846]
[1751440613651,2.2367,2443.2,2443.1,3.17452345]
[1751440614143,0.9002,2443.2,2443.1,8.46368196]
[1751440614347,8.57388201,2443.3,2443.2,0.81839]
[1751440615645,8.57388201,2443.3,2443.2,3.17448345]
[1751440615846,10.00588201,2443.3,2443.2,3.17448345]
[1751440618245,8.57388201,2443.3,2443.2,3.17448345]
[1751440618745,8.57388201,2443.3,2443.2,8.39098435]
[1751440621345,8.57388201,2443.3,2443.2,9.84478435]
[1751440624548,8.57388201,2443.3,2443.2,8.39098435]
[1751440630454,8.57388201,2443.3,2443.2,6.0348909]
[1751440630758,8.57388201,2443.3,2443.2,8.39098435]
[1751440631154,10.90988201,2443.3,2443.2,8.39098435]
[1751440631347,10.90988201,2443.3,2443.2,5.2165009]
[1751440632558,10.82664201,2443.3,2442.9,40.8]
[1751440632857,3.6459,2443.2,2443.1,2.35609345]
[1751440633857,3.6459,2443.2,2443.1,3.17452345]
[1751440635359,12.21978201,2443.2,2443.1,3.17452345]
[1751440636154,10.80948201,2443.2,2443.1,3.17452345]
[1751440636356,12.21348201,2443.2,2443.1,3.17452345]
[1751440638460,12.21348201,2443.2,2443.1,2.35609345]
[1751440639455,13.03187201,2443.2,2443.1,2.35609345]
[1751440639655,12.21348201,2443.2,2443.1,2.35609345]
[1751440640260,13.03187201,2443.2,2443.1,2.35609345]
[1751440640755,12.21348201,2443.2,2443.1,2.35609345]
[1751440640956,13.03187201,2443.2,2443.1,2.35609345]
[1751440641256,12.21348201,2443.2,2443.1,2.35609345]
[1751440641453,12.21348201,2443.2,2443.0,2.35609345]
[1751440641653,1.3913,2443.1,2443.0,2.35609345]
[1751440642860,1.3913,2443.1,2443.0,3.17455345]
[1751440643762,1.3913,2443.1,2443.0,2.35609345]
[1751440644153,1.3913,2443.1,2443.0,3.17455345]
[1751440644461,1.3913,2443.1,2442.9,41.61847]
[1751440644664,1.3913,2443.1,2443.0,2.35609345]
[1751440645164,6.3913,2443.1,2442.9,0.81849]
[1751440645463,25.289,2443.0,2442.8,3.17460345]
[1751440645762,26.7029,2443.0,2442.8,3.17460345]
[1751440645962,1.4139,2442.9,2442.8,3.17460345]
[1751440646564,2.23241,2442.9,2442.8,40.8]
[1751440646766,1.4139,2442.9,2442.8,40.8]
[1751440647365,1.4139,2442.9,2442.8,43.15609345]
[1751440647665,1.4139,2442.9,2442.8,43.97462345]
[1751440647859,1.4139,2442.9,2442.8,43.15609345]
[1751440648365,1.4139,2442.9,2442.8,43.97462345]
[1751440648766,1.4139,2442.9,2442.8,43.15609345]
[1751440649160,6.4139,2442.9,2442.6,2.35609345]
[1751440649360,26.08753,2442.8,2442.6,2.35609345]
[1751440649561,2.31076,2442.7,2442.6,43.15609345]
[1751440649766,2.9864,2442.7,2442.6,43.15609345]
[1751440650060,3.80496,2442.7,2442.6,43.15609345]
[1751440650367,12.37884201,2442.7,2442.6,43.15609345]
[1751440652967,12.37884201,2442.7,2442.6,40.8]
[1751440653968,11.56028201,2442.7,2442.6,43.97468345]
[1751440654171,12.37884201,2442.7,2442.6,43.15609345]
[1751440654371,11.56028201,2442.7,2442.3,3.17477345]
[1751440654667,0.81863,2442.5,2442.3,8.43463453]
[1751440654869,0.81863,2442.5,2442.4,40.8]
[1751440655067,26.7255,2442.5,2442.1,2.35609345]
[1751440655262,0.81871,2442.3,2442.1,3.17484345]
[1751440655464,26.11474,2442.2,2442.0,2.35609345]
[1751440655658,0.81876,2442.1,2442.0,2.35609345]
[1751440656066,2.24426,2442.1,2442.0,43.15609345]
[1751440656469,1.4255,2442.1,2442.0,43.15609345]
[1751440656668,2.24426,2442.1,2442.0,43.15609345]
[1751440657273,2.24426,2442.1,2442.0,40.8]
[1751440660267,10.81814201,2442.1,2442.0,40.8]
[1751440662272,12.34204201,2442.1,2442.0,40.8]
[1751440663274,0.81883,2441.9,2441.8,1.4903]
[1751440663473,26.07883,2441.9,2441.8,3.84639345]
[1751440663670,0.81883,2441.9,2441.8,44.64639345]
[1751440663868,26.07883,2441.9,2441.8,44.64639345]
[1751440665282,34.65271201,2441.9,2441.8,44.64639345]
[1751440666280,33.83388201,2441.9,2441.8,44.64639345]
[1751440666575,8.57388201,2441.9,2441.8,44.64639345]
[1751440666780,33.82188201,2441.9,2441.8,44.64639345]
[1751440667078,33.82188201,2441.9,2441.8,45.46525345]
[1751440667475,8.57388201,2441.9,2441.8,45.46525345]
[1751440667680,8.57388201,2441.9,2441.8,55.89843142]
[1751440668382,8.57388201,2441.9,2441.8,50.89843142]
[1751440669881,8.57388201,2441.9,2441.8,53.25452487]
[1751440670175,8.57388201,2441.9,2441.8,50.89843142]
[1751440670478,8.57388201,2441.9,2441.8,53.25452487]
[1751440670682,25.233,2442.4,2442.2,0.81871]
[1751440670881,25.233,2442.4,2442.3,4.3143]
[1751440671675,25.233,2442.4,2442.3,5.13299]
[1751440672076,36.97,2442.5,2442.4,0.81866]
[1751440672282,36.969,2442.5,2442.4,4.60895345]
[1751440672475,11.743,2442.5,2442.4,3.79029345]
[1751440672780,36.969,2442.5,2442.4,3.79029345]
[1751440673481,36.969,2442.5,2442.4,4.60895345]
[1751440673690,45.54288201,2442.5,2442.4,4.60895345]
[1751440676482,20.31688201,2442.5,2442.4,4.60895345]
[1751440676784,45.53588201,2442.5,2442.4,4.60895345]
[1751440677485,20.31688201,2442.5,2442.4,4.60895345]
[1751440678685,8.57388201,2442.5,2442.4,4.60895345]
[1751440681987,2.04585,2443.4,2442.4,4.60895345]
[1751440681988,11.742,2443.3,2443.2,0.81839]
[1751440682190,25.218,2443.3,2443.2,3.17447345]
[1751440682389,25.218,2443.3,2443.2,43.15609345]
[1751440682892,1.4269,2443.5,2443.2,44.66919345]
[1751440683194,25.217,2443.4,2443.2,45.48758345]
[1751440683391,27.57309345,2443.4,2443.2,40.8]
[1751440683587,3.0411,2443.3,2442.5,2.33171]
[1751440683786,0.8185,2442.9,2442.6,2.35609345]
[1751440684083,28.173,2442.8,2442.3,2.35609345]
[1751440684287,3.0411,2442.7,2442.4,0.81864]
[1751440684589,3.0411,2442.7,2442.5,40.8]
[1751440684792,1.4629,2442.6,2442.5,40.8]
[1751440685291,10.03678201,2442.6,2442.5,40.8]
[1751440685492,10.03678201,2442.6,2442.5,41.61863]
[1751440686895,10.03678201,2442.6,2442.5,43.97472345]
[1751440687594,8.57388201,2442.6,2442.5,43.97472345]
[1751440688494,8.57388201,2442.6,2442.5,49.35982232]
[1751440691799,8.57388201,2442.6,2442.5,48.54119232]
[1751440692097,8.57388201,2442.6,2442.5,49.35982232]
[1751440692901,8.57388201,2442.6,2442.5,48.54119232]
[1751440693096,8.57388201,2442.6,2442.5,49.35982232]
[1751440694898,8.57388201,2442.6,2442.5,50.79542232]
[1751440695793,8.57388201,2442.6,2442.5,46.18509887]
[1751440695993,41.14197546,2442.6,2442.0,8.14971375]
[1751440696197,3.69135,2442.5,2442.0,11.3245872]
[1751440696400,1.4708,2442.4,2442.1,5.32698931]
[1751440696602,1.4846,2442.3,2442.1,46.12698931]
[1751440696802,1.4994,2442.2,2442.1,46.94574931]
[1751440696990,1.4994,2442.2,2442.1,40.8]
[1751440697193,1.4994,2442.2,2442.1,41.61876]
[1751440697899,1.4846,2442.3,2442.2,0.81873]
[1751440698100,1.4846,2442.3,2442.2,3.17482345]
[1751440698800,2.9013,2442.5,2442.4,0.81866]
[1751440698995,1.4019,2442.5,2442.4,3.17475345]
[1751440699196,8.57388201,2442.6,2442.5,0.81863]
[1751440699604,8.57388201,2442.6,2442.5,46.8619391]
[1751440701397,8.57388201,2442.6,2442.5,49.21803255]
[1751440703100,8.57388201,2442.6,2442.5,46.8619391]
[1751440703296,8.57388201,2442.6,2442.5,40.8]
[1751440705102,8.57388201,2442.6,2442.3,0.81868]
[1751440705103,10.09188201,2442.6,2442.3,0.81868]
[1751440705303,1.518,2442.5,2442.3,0.81868]
[1751440705504,1.518,2442.5,2442.4,0.81866]
[1751440705705,1.518,2442.5,2442.4,41.61866]
[1751440706102,1.518,2442.5,2442.4,43.97475345]
[1751440706302,1.518,2442.5,2442.4,40.8]
[1751440707206,1.518,2442.5,2442.4,41.61866]
[1751440710302,35.36588201,2442.5,2442.4,41.61866]
[1751440710504,35.36588201,2442.5,2442.4,0.81866]
[1751440710807,33.84788201,2442.5,2442.4,0.81866]
[1751440711107,33.84788201,2442.5,2442.4,41.61866]
[1751440712704,33.84788201,2442.5,2442.4,40.8]
[1751440712903,33.84788201,2442.5,2442.4,41.61866]
[1751440714209,33.84788201,2442.5,2442.4,40.8]
[1751440714507,33.84788201,2442.5,2442.4,41.61866]
[1751440715810,33.84788201,2442.5,2442.4,40.8]
[1751440716110,33.84788201,2442.5,2442.4,41.61866]
[1751440717614,34.66651201,2442.5,2442.4,40.8]
[1751440717911,35.28488201,2442.5,2442.4,41.61866]
[1751440719012,36.73798201,2442.5,2442.4,41.61866]
[1751440721311,37.55661201,2442.5,2442.4,40.8]
[1751440721709,36.73798201,2442.5,2442.4,41.61866]
[1751440722711,36.73798201,2442.5,2442.4,40.8]